fUSD/lending_fUSD_20250108
["ID","MTS","AMOUNT","RATE_DAILY","PERIOD"]
[348088608,1736304638929,-502.64142898,9.999e-05,2]
[348088609,1736304638938,-500.0,9.999e-05,2]
[348088610,1736304638947,-501.40243259,9.999e-05,2]
[348088611,1736304638956,-500.0,9.999e-05,2]
[348088612,1736304638966,-500.0,9.999e-05,2]
[348088613,1736304638975,-500.0,9.999e-05,2]
[348088614,1736304638984,-500.0,9.999e-05,2]
[348088615,1736304638994,-500.0,9.999e-05,2]
[348088616,1736304639003,-500.0,9.999e-05,2]
[348088617,1736304639012,-500.0,9.999e-05,2]
[348088618,1736304639021,-500.0,9.999e-05,2]
[348088619,1736304639031,-500.0,9.999e-05,2]
[348088620,1736304639040,-450.46576478,9.999e-05,2]
[348088621,1736304639053,-500.0,9.999e-05,2]
[348088622,1736304639063,-500.0,9.999e-05,2]
[348088623,1736304639075,-500.0,9.999e-05,2]
[348088624,1736304639086,-500.0,9.999e-05,2]
[348088625,1736304639096,-1212.88,9.999e-05,2]
[348088626,1736304639105,-500.0,9.999e-05,2]
[348088627,1736304639115,-500.0,9.999e-05,2]
[348088628,1736304639124,-500.0,9.999e-05,2]
[348088629,1736304639134,-500.0,9.999e-05,2]
[348088630,1736304639143,-500.0,9.999e-05,2]
[348088631,1736304639152,-615.38031154,9.999e-05,2]
[348088632,1736304639161,-500.0,9.999e-05,2]
[348088633,1736304639170,-500.0,9.999e-05,2]
[348088634,1736304639179,-505.24447777,9.999e-05,2]
[348088635,1736304639188,-500.0,9.999e-05,2]
[348088636,1736304639197,-500.0,9.999e-05,2]
[348088637,1736304639206,-500.0,9.999e-05,2]
[348088638,1736304639215,-506.54962489,9.999e-05,2]
[348088639,1736304639224,-500.0,9.999e-05,2]
[348088640,1736304639234,-500.0,9.999e-05,2]
[348088641,1736304639243,-552.4,9.999e-05,2]
[348088642,1736304639252,-897.29,9.999e-05,2]
[348088643,1736304639262,-500.0,9.999e-05,2]
[348088644,1736304639271,-500.0,9.999e-05,2]
[348088645,1736304639280,-513.27559371,9.999e-05,2]
[348088646,1736304639290,-500.0,9.999e-05,2]
[348088647,1736304639299,-500.0,9.999e-05,2]
[348088648,1736304639308,-500.0,9.999e-05,2]
[348088649,1736304639317,-500.0,9.999e-05,2]
[348088650,1736304639326,-500.0,9.999e-05,2]
[348088651,1736304639335,-500.0,9.999e-05,2]
[348088652,1736304639345,-500.0,9.999e-05,2]
[348088653,1736304639354,-500.0,9.999e-05,2]
[348088654,1736304639363,-500.0,9.999e-05,2]
[348088655,1736304639372,-500.0,9.999e-05,2]
[348088656,1736304639381,-500.0,9.999e-05,2]
[348088657,1736304639390,-509.552982,9.999e-05,2]
[348088658,1736304639399,-413.46970047,9.999e-05,2]
[348088659,1736304639408,-500.0,9.999e-05,2]
[348088660,1736304639418,-744.09,9.999e-05,2]
[348088661,1736304639426,-500.0,9.999e-05,2]
[348088662,1736304639435,-500.0,9.999e-05,2]
[348088663,1736304639444,-500.0,9.999e-05,2]
[348088664,1736304639454,-500.0,9.999e-05,2]
[348088665,1736304639463,-500.0,9.999e-05,2]
[348088666,1736304639472,-500.0,9.999e-05,2]
[348088667,1736304639481,-500.0,9.999e-05,2]
[348088668,1736304639490,-500.0,9.999e-05,2]
[348088669,1736304639500,-500.0,9.999e-05,2]
[348088670,1736304639509,-500.0,9.999e-05,2]
[348088671,1736304639518,-500.0,9.999e-05,2]
[348088672,1736304639527,-532.505954,9.999e-05,2]
[348088673,1736304639536,-500.0,9.999e-05,2]
[348088674,1736304639545,-500.0,9.999e-05,2]
[348088675,1736304639554,-2190.58,9.999e-05,2]
[348088676,1736304639563,-500.0,9.999e-05,2]
[348088677,1736304639573,-500.0,9.999e-05,2]
[348088678,1736304639582,-500.0,9.999e-05,2]
[348088679,1736304639592,-500.0,9.999e-05,2]
[348088680,1736304639602,-500.0,9.999e-05,2]
[348088681,1736304639612,-533.83,9.999e-05,2]
[348088682,1736304639621,-506.02369281,9.999e-05,2]
[348088683,1736304639630,-582.58,9.999e-05,2]
[348088684,1736304639640,-500.0,9.999e-05,2]
[348088685,1736304639649,-500.0,9.999e-05,2]
[348088686,1736304639658,-500.0,9.999e-05,2]
[348088687,1736304639667,-660.86,9.999e-05,2]
[348088688,1736304639678,-500.0,9.999e-05,2]
[348088689,1736304639687,-500.0,9.999e-05,2]
[348088690,1736304639696,-954.1,9.999e-05,2]
[348088691,1736304639706,-500.0,9.999e-05,2]
[348088692,1736304639715,-500.0,9.999e-05,2]
[348088693,1736304639724,-3520.7,9.999e-05,2]
[348088694,1736304639733,-500.0,9.999e-05,2]
[348088695,1736304639742,-603.38,9.999e-05,2]
[348088696,1736304639751,-1898.17,9.999e-05,2]
[348088697,1736304639760,-500.0,9.999e-05,2]
[348088698,1736304639769,-500.0,9.999e-05,2]
[348088699,1736304639779,-500.0,9.999e-05,2]
[348088700,1736304639788,-500.0,9.999e-05,2]
[348088701,1736304639797,-500.0,9.999e-05,2]
[348088702,1736304639807,-500.0,9.999e-05,2]
[348088703,1736304639817,-500.0,9.999e-05,2]
[348088704,1736304639826,-500.0,9.999e-05,2]
[348088705,1736304639835,-727.82,9.999e-05,2]
[348088706,1736304639844,-500.0,9.999e-05,2]
[348088707,1736304639853,-500.0,9.999e-05,2]
[348088708,1736304639862,-500.0,9.999e-05,2]
[348088709,1736304639872,-500.0,9.999e-05,2]
[348088710,1736304639881,-500.0,9.999e-05,2]
[348088711,1736304639890,-545.67,9.999e-05,2]
[348088712,1736304639899,-500.0,9.999e-05,2]
[348088713,1736304639911,-500.0,9.999e-05,2]
[348088714,1736304639927,-1053.76,9.999e-05,2]
[348088715,1736304639938,-500.0,9.999e-05,2]
[348088716,1736304639950,-500.0,9.999e-05,2]
[348088717,1736304639961,-500.0,9.999e-05,2]
[348088718,1736304639972,-500.0,9.999e-05,2]
[348088719,1736304639981,-500.0,9.999e-05,2]
[348088720,1736304639990,-500.0,9.999e-05,2]
[348088721,1736304640000,-500.0,9.999e-05,2]
[348088722,1736304640010,-500.0,9.999e-05,2]
[348088723,1736304640021,-2135.52,9.999e-05,2]
[348088724,1736304640031,-506.22165205,9.999e-05,2]
[348088725,1736304640042,-500.0,9.999e-05,2]
[348088726,1736304640056,-593.07,9.999e-05,2]
[348088727,1736304640065,-500.0,9.999e-05,2]
[348088728,1736304640074,-500.0,9.999e-05,2]
[348088729,1736304640083,-500.0,9.999e-05,2]
[348088730,1736304640095,-1314.86,9.999e-05,2]
[348088731,1736304640105,-500.0,9.999e-05,2]
[348088732,1736304640116,-500.0,9.999e-05,2]
[348088733,1736304640126,-500.0,9.999e-05,2]
[348088734,1736304640137,-591.2,9.999e-05,2]
[348088735,1736304640147,-602.39,9.999e-05,2]
[348088736,1736304640157,-820.96,9.999e-05,2]
[348088737,1736304640166,-500.0,9.999e-05,2]
[348088738,1736304640176,-500.0,9.999e-05,2]
[348088739,1736304640187,-1095.83,9.999e-05,2]
[348088740,1736304640196,-500.0,9.999e-05,2]
[348088741,1736304640206,-500.0,9.999e-05,2]
[348088742,1736304640216,-500.0,9.999e-05,2]
[348088743,1736304640226,-907.47,9.999e-05,2]
[348088744,1736304640235,-507.26793546,9.999e-05,2]
[348088745,1736304640245,-735.14,9.999e-05,2]
[348088746,1736304640257,-500.0,9.999e-05,2]
[348088747,1736304640266,-500.0,9.999e-05,2]
[348088748,1736304640276,-500.0,9.999e-05,2]
[348088749,1736304640285,-1277.26,9.999e-05,2]
[348088750,1736304640294,-500.0,9.999e-05,2]
[348088751,1736304640303,-500.0,9.999e-05,2]
[348088752,1736304640312,-500.0,9.999e-05,2]
[348088754,1736304640322,-500.0,9.999e-05,2]
[348088755,1736304640331,-659.21,9.999e-05,2]
[348088756,1736304640341,-732.28,9.999e-05,2]
[348088757,1736304640350,-508.42736852,9.999e-05,2]
[348088758,1736304640359,-525.72,9.999e-05,2]
[348088759,1736304640368,-511.71261235,9.999e-05,2]
[348088760,1736304640378,-500.0,9.999e-05,2]
[348088761,1736304640387,-500.0,9.999e-05,2]
[348088762,1736304640397,-500.0,9.999e-05,2]
[348088763,1736304640406,-500.0,9.999e-05,2]
[348088764,1736304640415,-500.0,9.999e-05,2]
[348088765,1736304640424,-500.0,9.999e-05,2]
[348088766,1736304640433,-502.27678967,9.999e-05,2]
[348088767,1736304640443,-2103.54,9.999e-05,2]
[348088768,1736304640452,-500.0,9.999e-05,2]
[348088769,1736304640461,-2880.71,9.999e-05,2]
[348088770,1736304640470,-1352.69,9.999e-05,2]
[348088771,1736304640479,-500.0,9.999e-05,2]
[348088772,1736304640488,-500.0,9.999e-05,2]
[348088773,1736304640498,-500.0,9.999e-05,2]
[348088774,1736304640507,-500.0,9.999e-05,2]
[348088775,1736304640516,-500.0,9.999e-05,2]
[348088776,1736304640526,-500.0,9.999e-05,2]
[348088777,1736304640535,-500.0,9.999e-05,2]
[348088778,1736304640545,-500.0,9.999e-05,2]
[348088779,1736304640554,-1948.57,9.999e-05,2]
[348088780,1736304640563,-500.0,9.999e-05,2]
[348088781,1736304640573,-500.0,9.999e-05,2]
[348088782,1736304640582,-1627.3,9.999e-05,2]
[348088783,1736304640591,-868.0,0.0001,2]
[348088784,1736304640602,-154247.48586155,0.0001,2]
[348088785,1736304640621,-38045.73602392,0.0001,2]
[348088786,1736304640633,-46665.79708681,0.0001,2]
[348088787,1736304640642,-8113.39687227,0.0001,2]
[348088788,1736304640654,-3338.45242994,0.0001,2]
[348088789,1736304640668,-286.49996773,0.0001,2]
[348088790,1736304640680,-33003.54350681,0.0001,2]
[348088791,1736304640693,-971.10756872,0.0001,2]
[348088792,1736304640719,-1008.83789344,0.0001,2]
[348088793,1736304640731,-780.69675942,0.0001,2]
[348088794,1736304640742,-300.74593287,0.0001,2]
[348088795,1736304640756,-7040.0,0.0001,2]
[348088796,1736304640769,-2023.55,0.0001,2]
[348088797,1736304640780,-348.23005832,0.0001,2]
[348088798,1736304640791,-18367.35906512,0.0001,2]
[348088799,1736304640803,-832.10495352,0.0001,2]
[348088800,1736304641238,-500.0,9.999e-05,2]
[348088801,1736304641260,-13907.0128372,0.0001,2]
[348088803,1736304641286,-848.52500001,0.0001,2]
[348088804,1736304641324,-8119.69,0.0001,2]
[348088811,1736304643514,-500.0,9.999e-05,2]
[348088812,1736304643523,-6083.79937943,0.0001,2]
[348088813,1736304643534,-347.06404734,0.0001,2]
[348088814,1736304643732,-539.8,0.0001,2]
[348088815,1736304643744,-332.71918515,0.0001,2]
[348088816,1736304643755,-285.268048,0.0001,2]
[348088817,1736304643767,-455.31999994,0.0001,2]
[348088818,1736304646469,-500.0,9.998e-05,2]
[348088821,1736304646479,-500.0,9.998e-05,2]
[348088823,1736304646488,-189.14124271,9.999e-05,2]
[348088824,1736304646499,-1629.93875729,9.999e-05,2]
[348088825,1736304646508,-1999.05487119,0.0001,2]
[348088826,1736304646684,-4069.60464568,0.0001,2]
[348088827,1736304646695,-2063.89113104,0.0001,2]
[348088828,1736304646706,-1151.4223584,0.0001,2]
[348088829,1736304684090,2523.10918194,9.998e-05,120]
[348088909,1736305831835,-150.0,8.02e-05,2]
[348088910,1736305831846,-150.0,8.134e-05,2]
[348088911,1736305831855,-150.0,8.138e-05,2]
[348088912,1736305831865,-1381.31,8.219e-05,2]
[348088913,1736305831875,-810.80994708,8.465e-05,2]
[348088914,1736305831884,-150.0,8.465e-05,2]
[348088915,1736305831894,-150.0,8.504e-05,2]
[348088916,1736305831904,-150.0,8.639e-05,2]
[348088917,1736305831914,-300.0,8.686e-05,2]
[348088918,1736305831923,-13910.85467246,8.687e-05,2]
[348088919,1736305831935,-6768.06532754,8.687e-05,2]
[348088920,1736305831944,-189.34,8.734e-05,2]
[348088921,1736305831954,-250.0,8.838e-05,2]
[348088922,1736305831963,-150.0,8.853e-05,2]
[348088923,1736305831973,-1000.0,8.9e-05,2]
[348088924,1736305831982,-250.0,8.944e-05,2]
[348088925,1736305831992,-8192.14,9e-05,2]
[348088926,1736305832001,-250.0,9.01e-05,2]
[348088927,1736305832011,-165.37,9.02e-05,2]
[348088928,1736305832020,-342.37,9.024e-05,2]
[348088929,1736305832030,-167.05,9.103e-05,2]
[348088930,1736305832039,-150.0,9.246e-05,2]
[348088931,1736305832049,-150.0,9.292e-05,2]
[348088932,1736305832059,-553.44,9.354e-05,2]
[348088933,1736305832069,-150.0,9.376e-05,2]
[348088934,1736305832078,-150.0,9.39e-05,2]
[348088935,1736305832090,-150.0,9.39e-05,2]
[348088936,1736305832100,-154.371,9.5e-05,2]
[348088937,1736305832110,-222.65927171,9.508e-05,2]
[348088938,1736305832120,-420.0,9.554e-05,2]
[348088939,1736305832129,-277.76,9.575e-05,2]
[348088940,1736305832139,-777.37,9.575e-05,2]
[348088941,1736305832148,-720.19,9.575e-05,2]
[348088942,1736305832158,-771.88,9.575e-05,2]
[348088943,1736305832167,-437.76,9.575e-05,2]
[348088944,1736305832177,-771.88,9.575e-05,2]
[348088945,1736305832187,-437.76,9.575e-05,2]
[348088946,1736305832197,-771.88,9.575e-05,2]
[348088947,1736305832206,-150.0,9.775e-05,2]
[348088948,1736305832216,-150.0,9.833e-05,2]
[348088949,1736305832225,-358.7,9.836e-05,2]
[348088950,1736305832235,-705.6345,9.898e-05,2]
[348088951,1736305832244,-894.031,9.899e-05,2]
[348088952,1736305832254,-5000.0,9.899e-05,2]
[348088953,1736305832264,-210.5205,9.899e-05,2]
[348088954,1736305832274,-6058.795486,9.9e-05,2]
[348088955,1736305832285,-800.0,9.9e-05,3]
[348088956,1736305832296,-2828.30020095,9.907e-05,2]
[348088957,1736305832305,-300.0,9.921e-05,2]
[348088958,1736305832314,-854.0747582,9.97e-05,2]
[348088959,1736305832324,-876.0,9.991e-05,2]
[348088960,1736305832334,-500.0,9.997e-05,2]
[348088961,1736305832344,-3470.32,9.997e-05,2]
[348088962,1736305832354,-252.44911945,9.997e-05,2]
[348088963,1736305832364,-500.0,9.997e-05,2]
[348088964,1736305832375,-718.33,9.997e-05,2]
[348088965,1736305832384,-522.93,9.997e-05,2]
[348088966,1736305832394,-17261.1960901,9.997e-05,2]
[348088967,1736305832403,-1039.02,9.997e-05,2]
[348088969,1736305832413,-551.56473957,9.997e-05,2]
[348088971,1736305832423,-2103.14,9.997e-05,2]
[348088973,1736305832439,-760.92,9.997e-05,2]
[348088975,1736305832448,-975.82,9.997e-05,2]
[348088977,1736305832458,-587.4,9.997e-05,2]
[348088979,1736305832468,-1513.87,9.997e-05,2]
[348088980,1736305832479,-1071.0,9.997e-05,2]
[348088981,1736305832488,-829.04,9.997e-05,2]
[348088982,1736305832499,-890.49,9.997e-05,2]
[348088983,1736305832512,-500.0,9.997e-05,2]
[348088984,1736305832522,-1226.13,9.997e-05,2]
[348088985,1736305832532,-500.0,9.997e-05,2]
[348088986,1736305832542,-544.24,9.997e-05,2]
[348088987,1736305832551,-500.0,9.997e-05,2]
[348088988,1736305832561,-825.8,9.997e-05,2]
[348088989,1736305832571,-500.0,9.997e-05,2]
[348088990,1736305832581,-500.0,9.997e-05,2]
[348088991,1736305832591,-500.0,9.997e-05,2]
[348088992,1736305832601,-500.0,9.997e-05,2]
[348088993,1736305832610,-500.0,9.997e-05,2]
[348088994,1736305832620,-1421.53,9.997e-05,2]
[348088995,1736305832629,-2831.21,9.997e-05,2]
[348088996,1736305832639,-621.34,9.997e-05,2]
[348088997,1736305832648,-587.6,9.997e-05,2]
[348088998,1736305832658,-209.22422126,9.997e-05,2]
[348088999,1736305832668,-500.0,9.997e-05,2]
[348089000,1736305832677,-500.0,9.997e-05,2]
[348089001,1736305832686,-500.0,9.997e-05,2]
[348089002,1736305832696,-500.0,9.998e-05,2]
[348089003,1736305832705,-506.63770181,9.998e-05,2]
[348089004,1736305832715,-504.70778773,9.998e-05,2]
[348089005,1736305832724,-503.84035847,9.998e-05,2]
[348089006,1736305832733,-503.68143416,9.998e-05,2]
[348089007,1736305832742,-501.85370516,9.998e-05,2]
[348089008,1736305832751,-510.37688742,9.998e-05,2]
[348089009,1736305832761,-500.0,9.998e-05,2]
[348089010,1736305832770,-500.0,9.998e-05,2]
[348089011,1736305832779,-185.37318868,9.998e-05,2]
[348089012,1736305832788,-501.80410574,9.998e-05,2]
[348089013,1736305832797,-512.52940769,9.998e-05,2]
[348089014,1736305832806,-500.0,9.998e-05,2]
[348089015,1736305832816,-503.81380856,9.998e-05,2]
[348089016,1736305832825,-500.0,9.998e-05,2]
[348089017,1736305832834,-502.56096585,9.998e-05,2]
[348089018,1736305832844,-500.0,9.998e-05,2]
[348089019,1736305832853,-502.40746771,9.998e-05,2]
[348089020,1736305832862,-500.0,9.998e-05,2]
[348089021,1736305832871,-504.54226487,9.998e-05,2]
[348089022,1736305832880,-502.04754663,9.998e-05,2]
[348089023,1736305832889,-500.0,9.998e-05,2]
[348089024,1736305832899,-503.27471842,9.998e-05,2]
[348089025,1736305832908,-505.21385733,9.998e-05,2]
[348089026,1736305832917,-634.76141881,9.998e-05,2]
[348089027,1736305832926,-501.61504056,9.998e-05,2]
[348089028,1736305832936,-500.0,9.998e-05,2]
[348089029,1736305832946,-503.27829623,9.998e-05,2]
[348089030,1736305832956,-500.0,9.998e-05,2]
[348089031,1736305832965,-500.0,9.998e-05,2]
[348089032,1736305832974,-501.38770206,9.998e-05,2]
[348089033,1736305832983,-448.25810093,9.998e-05,2]
[348089034,1736305832993,-500.0,9.998e-05,2]
[348089035,1736305833002,-510.74939006,9.998e-05,2]
[348089036,1736305833011,-500.0,9.998e-05,2]
[348089037,1736305833019,-500.0,9.998e-05,2]
[348089038,1736305833027,-500.0,9.998e-05,2]
[348089039,1736305833036,-500.0,9.998e-05,2]
[348089040,1736305833045,-500.0,9.998e-05,2]
[348089041,1736305833055,-500.0,9.998e-05,2]
[348089042,1736305833064,-500.0,9.998e-05,2]
[348089043,1736305833074,-500.0,9.998e-05,2]
[348089044,1736305833084,-500.0,9.998e-05,2]
[348089045,1736305833095,-500.0,9.998e-05,2]
[348089046,1736305833105,-500.0,9.998e-05,2]
[348089047,1736305833115,-500.0,9.998e-05,2]
[348089048,1736305833125,-500.0,9.998e-05,2]
[348089049,1736305833135,-594.82,9.998e-05,2]
[348089050,1736305833145,-500.0,9.998e-05,2]
[348089051,1736305833154,-506.05338887,9.998e-05,2]
[348089052,1736305833164,-500.0,9.998e-05,2]
[348089053,1736305833173,-500.0,9.998e-05,2]
[348089054,1736305833182,-500.0,9.998e-05,2]
[348089055,1736305833192,-500.0,9.998e-05,2]
[348089056,1736305833201,-500.0,9.998e-05,2]
[348089057,1736305833211,-500.0,9.998e-05,2]
[348089058,1736305833222,-500.0,9.998e-05,2]
[348089059,1736305833232,-574.07,9.998e-05,2]
[348089060,1736305833242,-500.0,9.998e-05,2]
[348089061,1736305833252,-500.0,9.998e-05,2]
[348089062,1736305833261,-515.7,9.998e-05,2]
[348089063,1736305833271,-500.0,9.998e-05,2]
[348089064,1736305833281,-500.0,9.998e-05,2]
[348089065,1736305833291,-500.0,9.998e-05,2]
[348089066,1736305833300,-500.0,9.998e-05,2]
[348089067,1736305833310,-500.0,9.998e-05,2]
[348089068,1736305833319,-500.0,9.998e-05,2]
[348089069,1736305833329,-500.0,9.998e-05,2]
[348089070,1736305833341,-500.0,9.998e-05,2]
[348089071,1736305833350,-500.0,9.998e-05,2]
[348089072,1736305833360,-500.0,9.998e-05,2]
[348089073,1736305833370,-500.0,9.998e-05,2]
[348089074,1736305833380,-500.0,9.998e-05,2]
[348089075,1736305833390,-500.0,9.998e-05,2]
[348089076,1736305833399,-500.0,9.998e-05,2]
[348089077,1736305833408,-500.0,9.998e-05,2]
[348089078,1736305833418,-500.0,9.998e-05,2]
[348089079,1736305833428,-500.0,9.998e-05,2]
[348089080,1736305833441,-500.0,9.998e-05,2]
[348089081,1736305833451,-687.5,9.998e-05,2]
[348089082,1736305833460,-500.0,9.998e-05,2]
[348089083,1736305833471,-500.0,9.998e-05,2]
[348089084,1736305833480,-500.0,9.998e-05,2]
[348089085,1736305833490,-500.0,9.998e-05,2]
[348089086,1736305833499,-500.0,9.998e-05,2]
[348089087,1736305833512,-500.0,9.998e-05,2]
[348089088,1736305833522,-500.0,9.998e-05,2]
[348089089,1736305833532,-500.0,9.998e-05,2]
[348089090,1736305833543,-500.0,9.998e-05,2]
[348089091,1736305833553,-500.0,9.998e-05,2]
[348089092,1736305833563,-589.94,9.998e-05,2]
[348089093,1736305833573,-500.0,9.998e-05,2]
[348089094,1736305833583,-500.0,9.998e-05,2]
[348089095,1736305833596,-502.49652139,9.998e-05,2]
[348089096,1736305833606,-500.0,9.998e-05,2]
[348089097,1736305833615,-500.0,9.998e-05,2]
[348089098,1736305833625,-500.0,9.998e-05,2]
[348089099,1736305833636,-500.0,9.998e-05,2]
[348089100,1736305833645,-500.0,9.998e-05,2]
[348089101,1736305833656,-500.0,9.998e-05,2]
[348089102,1736305833666,-500.0,9.998e-05,2]
[348089103,1736305833676,-500.0,9.998e-05,2]
[348089104,1736305833686,-500.0,9.998e-05,2]
[348089105,1736305833696,-500.0,9.998e-05,2]
[348089106,1736305833706,-500.0,9.998e-05,2]
[348089107,1736305833716,-500.0,9.998e-05,2]
[348089108,1736305833725,-591.34,9.998e-05,2]
[348089109,1736305833735,-500.0,9.998e-05,2]
[348089110,1736305833744,-500.0,9.998e-05,2]
[348089111,1736305833753,-500.0,9.998e-05,2]
[348089112,1736305833763,-500.0,9.998e-05,2]
[348089113,1736305833772,-500.0,9.998e-05,2]
[348089114,1736305833782,-500.0,9.998e-05,2]
[348089115,1736305833791,-500.0,9.998e-05,2]
[348089116,1736305833801,-500.0,9.998e-05,2]
[348089117,1736305833810,-526.6,9.998e-05,2]
[348089118,1736305833820,-500.0,9.998e-05,2]
[348089119,1736305833829,-381.05715982,9.998e-05,2]
[348089120,1736305833842,-515.58,9.998e-05,2]
[348089121,1736305833851,-500.0,9.998e-05,2]
[348089122,1736305833861,-500.0,9.998e-05,2]
[348089123,1736305833871,-500.0,9.998e-05,2]
[348089124,1736305833880,-500.0,9.998e-05,2]
[348089125,1736305833890,-500.0,9.998e-05,2]
[348089126,1736305833900,-500.0,9.998e-05,2]
[348089127,1736305833910,-500.0,9.998e-05,2]
[348089128,1736305833920,-500.0,9.998e-05,2]
[348089129,1736305833930,-500.0,9.998e-05,2]
[348089130,1736305833939,-215.8635917,9.998e-05,2]
[348089131,1736305833949,-500.0,9.998e-05,2]
[348089132,1736305833959,-500.0,9.998e-05,2]
[348089133,1736305833968,-500.0,9.998e-05,2]
[348089134,1736305833978,-500.0,9.998e-05,2]
[348089135,1736305833988,-767.5,9.998e-05,2]
[348089136,1736305833998,-500.0,9.998e-05,2]
[348089137,1736305834008,-500.0,9.998e-05,2]
[348089138,1736305834018,-500.0,9.998e-05,2]
[348089139,1736305834028,-500.0,9.998e-05,2]
[348089140,1736305834037,-500.0,9.998e-05,2]
[348089141,1736305834047,-500.0,9.998e-05,2]
[348089142,1736305834058,-500.0,9.998e-05,2]
[348089143,1736305834068,-500.0,9.998e-05,2]
[348089144,1736305834077,-500.0,9.998e-05,2]
[348089145,1736305834087,-366.36087124,9.998e-05,2]
[348089146,1736305834099,-500.0,9.998e-05,2]
[348089147,1736305834110,-500.0,9.998e-05,2]
[348089148,1736305834120,-500.0,9.998e-05,2]
[348089149,1736305834130,-500.0,9.998e-05,2]
[348089150,1736305834140,-500.0,9.998e-05,2]
[348089151,1736305834149,-507.86024416,9.998e-05,2]
[348089152,1736305834159,-500.0,9.998e-05,2]
[348089153,1736305834169,-500.0,9.998e-05,2]
[348089154,1736305834178,-500.0,9.998e-05,2]
[348089155,1736305834189,-1188.13,9.998e-05,2]
[348089156,1736305834198,-500.0,9.998e-05,2]
[348089157,1736305834208,-500.0,9.998e-05,2]
[348089158,1736305834217,-500.0,9.998e-05,2]
[348089159,1736305834227,-500.0,9.998e-05,2]
[348089160,1736305834236,-500.0,9.998e-05,2]
[348089161,1736305834246,-500.0,9.998e-05,2]
[348089162,1736305834256,-500.0,9.998e-05,2]
[348089163,1736305834266,-500.0,9.998e-05,2]
[348089164,1736305834275,-500.0,9.998e-05,2]
[348089165,1736305834284,-500.0,9.998e-05,2]
[348089166,1736305834294,-500.0,9.998e-05,2]
[348089167,1736305834303,-500.0,9.998e-05,2]
[348089168,1736305834313,-500.0,9.998e-05,2]
[348089169,1736305834323,-880.74,9.998e-05,2]
[348089170,1736305834333,-500.0,9.998e-05,2]
[348089171,1736305834348,-550.22,9.998e-05,2]
[348089172,1736305834359,-500.0,9.998e-05,2]
[348089173,1736305834369,-500.0,9.998e-05,2]
[348089174,1736305834379,-500.0,9.998e-05,2]
[348089175,1736305834390,-500.0,9.998e-05,2]
[348089176,1736305834400,-500.0,9.998e-05,2]
[348089177,1736305834410,-500.0,9.998e-05,2]
[348089178,1736305834420,-500.0,9.998e-05,2]
[348089179,1736305834435,-500.0,9.998e-05,2]
[348089180,1736305834445,-500.0,9.998e-05,2]
[348089181,1736305834455,-733.92,9.998e-05,2]
[348089182,1736305834466,-504.95319518,9.998e-05,2]
[348089183,1736305834476,-500.0,9.998e-05,2]
[348089184,1736305834486,-500.0,9.998e-05,2]
[348089185,1736305834497,-459.233696,9.998e-05,2]
[348089186,1736305834508,-500.0,9.998e-05,2]
[348089187,1736305834519,-500.0,9.998e-05,2]
[348089188,1736305834529,-500.0,9.998e-05,2]
[348089189,1736305834539,-500.0,9.998e-05,2]
[348089190,1736305834550,-500.0,9.998e-05,2]
[348089191,1736305834560,-500.0,9.998e-05,2]
[348089192,1736305834571,-500.0,9.998e-05,2]
[348089193,1736305834581,-500.0,9.998e-05,2]
[348089194,1736305834599,-500.0,9.998e-05,2]
[348089195,1736305834609,-480.844614,9.998e-05,2]
[348089196,1736305834619,-500.0,9.998e-05,2]
[348089197,1736305834630,-2176.03,9.998e-05,2]
[348089198,1736305834640,-500.0,9.998e-05,2]
[348089199,1736305834651,-500.0,9.998e-05,2]
[348089200,1736305834661,-500.0,9.998e-05,2]
[348089201,1736305834671,-500.0,9.998e-05,2]
[348089202,1736305834680,-500.0,9.998e-05,2]
[348089203,1736305834690,-500.0,9.998e-05,2]